fUST/lending_fUST_20250809
["ID","MTS","AMOUNT","RATE_DAILY","PERIOD"]
[378136414,1754741453340,-460.0,0.00024383,2]
[378136416,1754741453350,-1036.11,0.00024383,2]
[378136418,1754741453359,-2166.76,0.00024383,2]
[378136420,1754741453368,-901.83,0.00024383,2]
[378136423,1754741453379,-787.59,0.00024383,2]
[378136425,1754741453388,-3577.23,0.00024383,2]
[378136427,1754741453398,-1883.14,0.00024383,2]
[378136429,1754741453407,-160.0,0.00024383,7]
[378136430,1754741453417,-589.1,0.00024383,2]
[378136432,1754741453426,-460.0,0.00024383,2]
[378136435,1754741453435,-1073.99,0.00024383,2]
[378136436,1754741453445,-2359.44,0.00024383,2]
[378136438,1754741453454,-842.95011917,0.00024383,7]
[378136440,1754741453464,-460.0,0.00024383,2]
[378136443,1754741453474,-897.65,0.00024383,2]
[378136445,1754741453484,-460.0,0.00024383,2]
[378136447,1754741453494,-2557.2,0.00024383,2]
[378136449,1754741453503,-1727.75,0.00024383,2]
[378136451,1754741453513,-324.39658148,0.00024383,2]
[378136452,1754741453523,-460.0,0.00024383,2]
[378136455,1754741453533,-471.44,0.00024383,2]
[378136457,1754741453543,-460.0,0.00024383,2]
[378136459,1754741453552,-1964.29,0.00024383,2]
[378136461,1754741453563,-460.0,0.00024383,2]
[378136462,1754741453572,-1417.58,0.00024383,2]
[378136464,1754741453582,-312.16666667,0.00024383,7]
[378136467,1754741453592,-1061.01,0.00024383,2]
[378136469,1754741453601,-570.16,0.00024383,2]
[378136471,1754741453613,-216.61183532,0.00024383,7]
[378136473,1754741453622,-988.88,0.00024383,2]
[378136475,1754741453631,-1182.93,0.00024383,2]
[378136476,1754741453641,-460.0,0.00024383,2]
[378136478,1754741453650,-676.95,0.00024383,2]
[378136480,1754741453661,-872.23,0.00024383,2]
[378136482,1754741453670,-757.14,0.00024383,2]
[378136484,1754741453680,-1862.94,0.00024383,2]
[378136486,1754741453691,-1583.09,0.00024383,2]
[378136489,1754741453701,-863.32,0.00024413,2]
[378136491,1754741453710,-360.0,0.00024421,2]
[378136493,1754741453720,-200.0,0.00024422,15]
[378136495,1754741453729,-200.0,0.00024422,15]
[378136497,1754741453738,-200.0,0.00024422,15]
[378136499,1754741453747,-200.0,0.00024422,15]
[378136501,1754741453756,-200.0,0.00024422,15]
[378136503,1754741453765,-200.0,0.00024422,15]
[378136505,1754741453774,-200.0,0.00024422,15]
[378136507,1754741453783,-582.8001158,0.00024428,2]
[378136509,1754741453792,-400.0,0.00024428,2]
[378136510,1754741453802,-441.0,0.00024505,2]
[378136513,1754741453811,-5888.0,0.00024595,2]
[378136515,1754741453820,-151.0,0.000246,9]
[378136517,1754741453829,-151.0,0.000246,7]
[378136518,1754741453839,-441.0,0.00024623,2]
[378136520,1754741453848,-441.0,0.00024628,2]
[378136522,1754741453857,-151.0,0.0002465,7]
[378136524,1754741453867,-2000.0,0.0002465,2]
[378136527,1754741453877,-606.567,0.0002465,2]
[378136529,1754741453886,-151.0,0.0002465,7]
[378136531,1754741453895,-151.0,0.0002465,7]
[378136533,1754741453905,-151.0,0.0002465,7]
[378136535,1754741453914,-151.0,0.0002465,7]
[378136548,1754741454028,-151.0,0.0002465,7]
[378136550,1754741454038,-221.008545,0.0002465,7]
[378136552,1754741454047,-221.008545,0.0002465,7]
[378136554,1754741454056,-231.10873,0.00024656,7]
[378136556,1754741454065,-231.10873,0.00024656,7]
[378136558,1754741454074,-471.27,0.00024656,2]
[378136560,1754741454083,-460.0,0.00024656,2]
[378136562,1754741454093,-460.0,0.00024656,2]
[378136564,1754741454102,-620.37,0.00024656,2]
[378136566,1754741454112,-515.86,0.00024656,2]
[378136568,1754741454121,-478.87,0.00024656,2]
[378136570,1754741454131,-460.0,0.00024656,2]
[378136572,1754741454140,-578.32,0.00024656,2]
[378136574,1754741454150,-359.58096662,0.00024656,2]
[378136590,1754741454292,-460.0,0.00021917,2]
[378136592,1754741454303,-460.0,0.00021917,2]
[378136594,1754741454312,-460.0,0.0002219,2]
[378136596,1754741454321,-460.0,0.00022464,2]
[378136598,1754741454331,-605.05,0.00022739,2]
[378136600,1754741454340,-605.05,0.00023013,2]
[378136602,1754741454350,-605.05,0.00023287,2]
[378136604,1754741454359,-605.05,0.00023561,2]
[378136606,1754741454369,-605.05,0.00023835,2]
[378136608,1754741454378,-605.05,0.00024109,2]
[378136610,1754741454388,-605.05,0.00024383,2]
[378136612,1754741454398,-189.31903338,0.00024656,2]
[378136614,1754741454407,-651.18,0.00024656,2]
[378136616,1754741454416,-460.0,0.00024656,2]
[378136619,1754741454426,-779.92,0.00024656,2]
[378136621,1754741454435,-151.0,0.00024656,7]
[378136623,1754741454444,-460.0,0.00024656,2]
[378136625,1754741454454,-288.74852156,0.00024656,2]
[378136626,1754741454463,-460.0,0.00024656,2]
[378136628,1754741454473,-460.0,0.00024656,2]
[378136631,1754741454483,-460.0,0.00024656,2]
[378136633,1754741454492,-847.56,0.00024656,2]
[378136635,1754741454501,-460.0,0.00024656,2]
[378136637,1754741454510,-829.29,0.00024656,2]
[378136638,1754741454519,-595.37,0.00024656,2]
[378136641,1754741454530,-460.0,0.00024656,2]
[378136643,1754741454539,-529.458228,0.00024656,7]
[378136645,1754741454548,-529.458228,0.00024656,7]
[378136647,1754741454557,-621.52,0.00024656,2]
[378136649,1754741454569,-467.98,0.00024656,2]
[378136651,1754741454578,-500.0,0.00024657,2]
[378136653,1754741454587,-405.91777164,0.00024657,2]
[378136655,1754741454596,-668.01,0.00024657,2]
[378136657,1754741454605,-529.39,0.00024657,2]
[378136659,1754741454617,-674.89,0.00024657,2]
[378136661,1754741454627,-460.0,0.00024657,2]
[378136663,1754741454636,-392.99338012,0.00024657,2]
[378136665,1754741454648,-67.00661988,0.00024657,2]
[378136667,1754741454657,-578.73414787,0.00024657,2]
[378136669,1754741454671,-304.2614001,0.00024657,2]
[378136679,1754741454752,-514.97566125,0.00021717,2]
[378136681,1754741454761,-160.0,0.00022472,2]
[378136683,1754741454771,-153.11445203,0.00024657,2]
[378136685,1754741454781,-2166.76,0.00024657,2]
[378136687,1754741454790,-901.83,0.00024657,2]
[378136689,1754741454799,-787.59,0.00024657,2]
[378136691,1754741454809,-3577.23,0.00024657,2]
[378136693,1754741454819,-1883.14,0.00024657,2]
[378136695,1754741454828,-589.1,0.00024657,2]
[378136697,1754741454837,-460.0,0.00024657,2]
[378136699,1754741454847,-1073.99,0.00024657,2]
[378136701,1754741454856,-2359.44,0.00024657,2]
[378136703,1754741454866,-460.0,0.00024657,2]
[378136705,1754741454876,-897.65,0.00024657,2]
[378136707,1754741454885,-460.0,0.00024657,2]
[378136709,1754741454897,-2557.2,0.00024657,2]
[378136711,1754741454907,-1727.75,0.00024657,2]
[378136713,1754741454917,-460.0,0.00024657,2]
[378136715,1754741454926,-471.44,0.00024657,2]
[378136717,1754741454935,-460.0,0.00024657,2]
[378136719,1754741454945,-1964.29,0.00024657,2]
[378136721,1754741454954,-460.0,0.00024657,2]
[378136723,1754741454963,-1417.58,0.00024657,2]
[378136725,1754741454973,-1061.01,0.00024657,2]
[378136727,1754741454982,-570.16,0.00024657,2]
[378136729,1754741454992,-988.88,0.00024657,2]
[378136731,1754741455001,-1182.93,0.00024657,2]
[378136733,1754741455010,-315.61022333,0.00024657,2]
[378136735,1754741455020,-676.95,0.00024657,2]
[378136737,1754741455029,-872.23,0.00024657,2]
[378136738,1754741455038,-757.14,0.00024657,2]
[378136739,1754741455047,-2325.87,0.00024657,4]
[378136740,1754741455057,-1862.94,0.00024657,2]
[378136741,1754741455066,-1583.09,0.00024657,2]
[378136742,1754741455075,-605.05,0.00024657,2]
[378136743,1754741455085,-380.0,0.00024658,2]
[378136744,1754741455094,-151.0,0.00024658,7]
[378136745,1754741455103,-198.0,0.00024658,3]
[378136746,1754741455112,-198.0,0.00024658,3]
[378136747,1754741455121,-151.0,0.00024658,3]
[378136748,1754741455130,-198.91726074,0.00024658,2]
[378136749,1754741455140,-545.0,0.00024658,2]
[378136750,1754741455149,-500.0,0.00024658,2]
[378136751,1754741455158,-222.7520725,0.00024658,2]
[378136752,1754741455168,-151.0,0.00024658,2]
[378136753,1754741455177,-198.0,0.00024658,2]
[378136754,1754741455186,-500.0,0.00024658,2]
[378136755,1754741455195,-2500.0,0.00024664,2]
[378136756,1754741455204,-2500.0,0.00024664,2]
[378136757,1754741455213,-151.0,0.000247,8]
[378136758,1754741455223,-497.63546535,0.00024716,2]
[378136759,1754741455232,-350.0,0.00024716,2]
[378136760,1754741455241,-500.0,0.00024773,2]
[378136761,1754741455250,-151.0,0.00024777,7]
[378136762,1754741455259,-151.0,0.000248,7]
[378136763,1754741455268,-151.0,0.000248,7]
[378136764,1754741455278,-151.0,0.000248,7]
[378136765,1754741455287,-11597.41069614,0.000248,2]
[378136766,1754741455296,-9473.0920516,0.000248,2]
[378136767,1754741455305,-441.0,0.00024802,2]
[378136768,1754741455314,-529.458228,0.00024806,7]
[378136769,1754741455326,-529.458228,0.00024806,7]
[378136770,1754741455335,-3291.777,0.00024806,2]
[378136771,1754741455344,-215.485006,0.00024831,7]
[378136772,1754741455353,-247.327771,0.00024834,7]
[378136773,1754741455362,-373.046751,0.00024834,7]
[378136774,1754741455372,-500.0,0.00024873,2]
[378136775,1754741455381,-500.0,0.00024873,2]
[378136776,1754741455391,-151.0,0.0002489,7]
[378136777,1754741455400,-151.0,0.0002489,7]
[378136778,1754741455409,-6657.35414916,0.000249,2]
[378136779,1754741455418,-151.0,0.000249,7]
[378136780,1754741455428,-495.695562,0.000249,7]
[378136781,1754741455438,-495.695562,0.000249,7]
[378136782,1754741455447,-151.0,0.000249,7]
[378136783,1754741455456,-151.0,0.000249,7]
[378136784,1754741455466,-151.0,0.000249,7]
[378136785,1754741455476,-212.799724,0.000249,7]
[378136786,1754741455485,-151.0,0.000249,7]
[378136787,1754741455495,-151.0,0.000249,7]
[378136788,1754741455505,-221.008545,0.000249,7]
[378136789,1754741455515,-221.008545,0.000249,7]
[378136790,1754741455524,-302.9567,0.000249,7]
[378136791,1754741455533,-373.046751,0.000249,7]
[378136792,1754741455543,-231.10873,0.000249,7]
[378136793,1754741455552,-231.10873,0.000249,7]
[378136794,1754741455561,-151.0,0.000249,7]
[378136795,1754741455571,-151.0,0.000249,7]
[378136796,1754741455580,-151.0,0.000249,7]
[378136797,1754741455590,-151.0,0.000249,7]
[378136798,1754741455599,-151.0,0.000249,7]
[378136799,1754741455609,-151.0,0.000249,7]
[378136800,1754741455621,-228.19860538,0.000249,7]
[378136801,1754741455630,-151.0,0.000249,7]
[378136802,1754741455639,-151.0,0.000249,7]
[378136803,1754741455649,-264.908274,0.000249,7]
[378136804,1754741455659,-264.908274,0.000249,7]
[378136805,1754741455669,-151.0,0.000249,7]
[378136806,1754741455678,-151.0,0.000249,7]
[378136807,1754741455687,-151.0,0.000249,7]
[378136808,1754741455697,-151.0,0.000249,7]
[378136809,1754741455708,-564865.23751455,0.000249,2]
[378136810,1754741455721,-258.1969909,0.000249,2]
[378136811,1754741455870,-470.62054511,0.00021917,2]
[378136812,1754741455880,-1609.54875413,0.000249,2]
[378136813,1754741455892,-1744.32299478,0.000249,2]
[378136814,1754741455908,-293.00176164,0.000249,2]
[378136815,1754741455978,-156.1,0.00022,2]
[378136816,1754741455987,-255.77801286,0.00022464,2]
[378136817,1754741455997,-156.1,0.00023206,2]
[378136818,1754741456107,-514.97566124,0.00023259,2]
[378136819,1754741456119,-156.1,0.00024413,2]
[378136820,1754741456128,-1408.43651403,0.000249,2]
[378136821,1754741456527,150.0,0.00020373,2]
[378136822,1754741515581,7777.84422995,0.000199,2]
[378136824,1754741605730,304.652726,0.00020793,2]
[378136825,1754741606405,4121.23283525,0.00031652,30]
[378136827,1754741681178,458.58151579,0.00013699,2]
[378136828,1754741681201,50.52494021,0.00013699,2]
[378136829,1754741681370,509.106456,0.00020187,2]
[378136830,1754741697507,7518.58275557,0.000199,2]
[378136831,1754741748648,3017.56519002,0.00019178,2]
[378136832,1754741781903,157.6,0.00031636,60]
[378136833,1754741882396,1404.2206582,0.000199,2]
[378136834,1754741882429,5863.74267231,0.000199,2]
[378136835,1754741988550,156.71609954,0.00021551,2]
[378136836,1754741995614,309.61770391,0.00021538,2]
[378136837,1754742049280,5000.0,0.00021551,2]
[378136838,1754742057179,1169.92352424,0.00021551,2]
[378136839,1754742057201,3830.07647576,0.00021551,2]
[378136840,1754742072590,8669.92352424,0.00020767,2]
[378136841,1754742072616,1330.07647576,0.00020767,2]
[378136842,1754742072741,7025.69788615,0.000199,2]
[378136843,1754742082128,4144.22563809,0.00021551,2]
[378136844,1754742082150,855.77436191,0.00021551,2]
[378136845,1754742090602,3746.0189685,0.00021551,2]
[378136846,1754742098791,5000.0,0.00021551,2]
[378136847,1754742115120,2898.20666959,0.00021551,2]
[378136848,1754742115142,2101.79333041,0.00021551,2]
[378136849,1754742132845,5000.0,0.00021551,2]
[378136850,1754742139288,-2000.0,0.00021562,2]
[378136851,1754742139312,-606.567,0.00021562,2]
[378136852,1754742148718,5000.0,0.0002159,2]
[378136853,1754742156529,263.9190091,0.0002159,2]
[378136854,1754742164877,5000.0,0.0002159,2]
[378136855,1754742173296,5000.0,0.0002159,2]
[378136856,1754742189219,5000.0,0.0002159,2]
[378136857,1754742197354,5000.0,0.0002159,2]
[378136859,1754742206597,636.97428153,0.0002159,2]
[378136860,1754742214819,5000.0,0.0002159,2]
[378136861,1754742231263,5000.0,0.0002159,2]
[378136862,1754742249616,5000.0,0.0002159,2]
[378136863,1754742257377,6791.50795637,0.000199,2]
[378136865,1754742273906,282.96586362,0.00021552,2]
[378136866,1754742274798,620.877033,0.00020726,2]
[378136867,1754742305502,4603.0,0.00025,30]
[378136868,1754742316787,5000.0,0.0002159,2]
[378136870,1754742357124,567.46476775,0.0001949,2]
[378136871,1754742359607,185.89171525,0.00021554,2]
[378136873,1754742372294,150.0,0.0003164,30]
[378136875,1754742440681,6565.12435795,0.000199,2]
[378136876,1754742472372,250.89923789,0.000209,2]
[378136877,1754742472441,39192.22501325,0.00018,2]
[378136878,1754742489740,1840.06311073,0.000237,30]
[378136881,1754742503551,2227.0708193,0.0002,30]
[378136882,1754742520111,225.14748105,0.00018,2]
[378136883,1754742521649,1109.22324684,0.00023,30]
[378136886,1754742528770,31077.49141805,0.0002,2]
[378136887,1754742551570,24900.0,0.00020755,2]
[378136888,1754742578985,281.527118,0.00020815,2]
[378136891,1754742585142,175.48314076,0.00021554,2]
[378136893,1754742627675,6346.2868794,0.000199,2]
[378136936,1754742632048,-522.70553161,0.00021654,2]
[378136941,1754742632107,-677.29446839,0.00021654,2]
[378136944,1754742632117,-300.0,0.00021654,2]
[378136947,1754742632126,-300.0,0.00021654,2]
[378136950,1754742632136,-300.0,0.00021654,2]
[378136953,1754742632146,-1200.0,0.00021654,2]
[378136955,1754742632155,-3506.85270693,0.00021655,2]
[378136956,1754742632167,-1522.87,0.00021655,2]
[378136957,1754742632178,-1316.56417229,0.00021655,2]
[378136958,1754742632187,-2243.02301606,0.00021717,2]
[378136966,1754742638024,-10230.96737883,0.00021717,2]
[378136967,1754742638037,-1044.02689478,0.00021717,2]
[378136968,1754742638049,-288.31386756,0.00021717,2]
[378136969,1754742638063,-288.31386754,0.00021767,2]
[378136970,1754742638080,-50000.0,0.00021767,2]
[378136971,1754742638092,-328.59658136,0.00021817,2]
[378136972,1754742638103,-288.31386754,0.00021817,2]
[378136973,1754742638116,-484.62,0.00021906,10]
[378136974,1754742638128,-534.38,0.00021906,10]
[378136975,1754742638139,-500.0,0.00021915,2]
[378136976,1754742638153,-500.0,0.00021915,2]
[378136977,1754742638165,-500.0,0.00021915,2]
[378136978,1754742638175,-500.0,0.00021915,2]
[378136979,1754742638185,-322.98618305,0.00021915,2]
[378136980,1754742638196,-317.73192537,0.00021915,2]
[378136981,1754742638207,-500.0,0.00021915,2]
[378136982,1754742638219,-189.63185544,0.00021915,2]
[378136983,1754742638230,-194.13890108,0.00021915,2]
[378136984,1754742638241,-500.0,0.00021915,2]
[378136985,1754742638252,-500.0,0.00021915,2]
[378136986,1754742638263,-500.0,0.00021915,2]
[378136987,1754742638274,-500.0,0.00021915,2]
[378136988,1754742638285,-233.48121006,0.00021915,2]
[378136989,1754742638296,-500.0,0.00021915,2]
[378136990,1754742638307,-611.24739135,0.00021915,2]
[378136991,1754742638317,-500.0,0.00021915,2]
[378136992,1754742638328,-189.10281879,0.00021915,2]
[378136993,1754742638339,-500.0,0.00021915,2]
[378136994,1754742638350,-500.0,0.00021915,2]
[378136995,1754742638362,-500.0,0.00021915,2]
[378136996,1754742638378,-503.95627769,0.00021915,2]
[378136997,1754742638389,-500.0,0.00021915,2]
[378136998,1754742638400,-500.0,0.00021915,2]
[378136999,1754742638411,-161.6321008,0.00021915,2]
[378137000,1754742638423,-373.16212124,0.00021915,2]
[378137001,1754742638434,-1297.65596443,0.00021916,2]
[378137002,1754742638446,-428.71456575,0.00021916,2]
[378137003,1754742638458,-1297.65596443,0.00021916,2]
[378137004,1754742638468,-1297.65596443,0.00021916,2]
[378137005,1754742638480,-1297.65596443,0.00021916,2]
[378137006,1754742638491,-1297.65596443,0.00021916,2]
[378137007,1754742638503,-1297.65596443,0.00021916,2]
[378137008,1754742638515,-1297.65596443,0.00021916,2]
[378137009,1754742638526,-1297.65596443,0.00021916,2]
[378137010,1754742638537,-1297.65596443,0.00021916,2]
[378137011,1754742638547,-1297.65596443,0.00021916,2]
[378137012,1754742638559,-1297.65596443,0.00021916,2]
[378137013,1754742638574,-1297.65596443,0.00021916,2]
[378137014,1754742638593,-1297.65596443,0.00021916,2]
[378137015,1754742638603,-1297.65596443,0.00021916,2]
[378137016,1754742638614,-1297.65596443,0.00021916,2]
[378137017,1754742638625,-1297.65596443,0.00021916,2]
[378137018,1754742638636,-1297.65596443,0.00021916,2]
[378137019,1754742638647,-1297.65596443,0.00021916,2]
[378137020,1754742638658,-1297.65596443,0.00021916,2]
[378137021,1754742638672,-1297.65596443,0.00021916,2]
[378137022,1754742638683,-1340.91116326,0.00021916,2]
[378137023,1754742638694,-1340.91116326,0.00021916,2]
[378137024,1754742638705,-1340.91116326,0.00021916,2]
[378137025,1754742638715,-1340.91116326,0.00021916,2]
[378137026,1754742638727,-1340.91116326,0.00021916,2]
[378137027,1754742638739,-1340.91116326,0.00021916,2]
[378137028,1754742638754,-1340.91116326,0.00021916,2]
[378137029,1754742638764,-1340.91116326,0.00021916,2]
[378137030,1754742638775,-1340.91116326,0.00021916,2]
[378137031,1754742638786,-475.13076869,0.00021917,2]
[378137032,1754742638796,-344.50283401,0.00021917,2]
[378137033,1754742638807,-460.0,0.00021917,2]
[378137034,1754742638818,-460.0,0.00021917,2]
[378137035,1754742638831,-460.0,0.00021917,2]
[378137036,1754742638841,-460.0,0.00021917,2]
[378137037,1754742638853,-460.0,0.00021917,2]
[378137038,1754742638863,-460.0,0.00021917,2]
[378137039,1754742638874,-460.0,0.00021917,2]
[378137040,1754742638885,-460.0,0.00021917,2]
[378137041,1754742638896,-460.0,0.00021917,2]
[378137042,1754742638907,-466.1553182,0.00021917,2]
[378137043,1754742638919,-460.0,0.00021917,2]
[378137044,1754742638930,-460.0,0.00021917,2]
[378137045,1754742638941,-460.0,0.00021917,2]
[378137046,1754742638952,-460.0,0.00021917,2]
[378137047,1754742638963,-460.0,0.00021917,2]
[378137048,1754742638973,-460.0,0.00021917,2]
[378137049,1754742638984,-460.0,0.00021917,2]
[378137050,1754742638994,-460.0,0.00021917,2]
[378137051,1754742639005,-463.61386356,0.00021917,2]
[378137052,1754742639016,-460.0,0.00021917,2]
[378137053,1754742639027,-460.0,0.00021917,2]
[378137054,1754742639039,-460.0,0.00021917,2]
[378137055,1754742639051,-460.0,0.00021917,2]
[378137056,1754742639062,-417.67103795,0.00021917,2]
[378137057,1754742639077,-316.29203178,0.00021917,2]
[378137058,1754742639088,-470.24028196,0.00021917,2]
[378137059,1754742639100,-420.63450686,0.00021917,2]
[378137060,1754742639110,-460.0,0.00021917,2]
[378137061,1754742639120,-460.0,0.00021917,2]
[378137062,1754742639130,-460.0,0.00021917,2]
[378137063,1754742639140,-460.0,0.00021917,2]
[378137064,1754742639151,-460.0,0.00021917,2]
[378137065,1754742639160,-460.0,0.00021917,2]
[378137066,1754742639170,-318.52988683,0.00021917,2]
[378137067,1754742639179,-460.0,0.00021917,2]
[378137068,1754742639371,-460.0,0.00021917,2]
[378137069,1754742639387,-460.0,0.00021917,2]
[378137070,1754742639396,-460.0,0.00021917,2]
[378137071,1754742639406,-461.19518671,0.00021917,2]
[378137072,1754742639416,-460.0,0.00021917,2]
[378137074,1754742639426,-191.5641129,0.00021917,2]
[378137075,1754742639435,-460.0,0.00021917,2]
[378137076,1754742639445,-460.0,0.00021917,2]
[378137077,1754742639454,-460.0,0.00021917,2]
[378137078,1754742639463,-460.0,0.00021917,2]
[378137079,1754742639473,-460.0,0.00021917,2]
[378137080,1754742639482,-460.0,0.00021917,2]
[378137081,1754742639491,-460.0,0.00021917,2]
[378137082,1754742639501,-460.0,0.00021917,2]
[378137083,1754742639510,-460.0,0.00021917,2]
[378137084,1754742639520,-460.0,0.00021917,2]
[378137086,1754742639529,-460.0,0.00021917,2]
[378137087,1754742639539,-460.0,0.00021917,2]
[378137089,1754742639549,-466.99,0.00021917,2]
[378137091,1754742639559,-460.0,0.00021917,2]
[378137092,1754742639569,-460.0,0.00021917,2]
[378137093,1754742639578,-460.0,0.00021917,2]
[378137094,1754742639588,-460.0,0.00021917,2]
[378137095,1754742639599,-460.0,0.00021917,2]
[378137096,1754742639608,-460.0,0.00021917,2]
[378137097,1754742639618,-460.0,0.00021917,2]
[378137099,1754742639628,-460.0,0.00021917,2]
[378137100,1754742639637,-460.0,0.00021917,2]
[378137102,1754742639647,-460.0,0.00021917,2]
[378137103,1754742639656,-460.0,0.00021917,2]
[378137104,1754742639667,-460.0,0.00021917,2]
[378137105,1754742639676,-460.0,0.00021917,2]
[378137106,1754742639686,-470.77,0.00021917,2]
[378137107,1754742639695,-460.0,0.00021917,2]
[378137108,1754742639704,-460.0,0.00021917,2]
[378137109,1754742639714,-460.0,0.00021917,2]
[378137110,1754742639723,-460.0,0.00021917,2]
[378137111,1754742639733,-500.0,0.00021917,2]
[378137112,1754742639743,-460.0,0.00021917,2]
[378137113,1754742639753,-460.0,0.00021917,2]
[378137115,1754742639762,-460.0,0.00021917,2]
[378137117,1754742639772,-465.48733202,0.00021917,2]
[378137119,1754742639781,-460.0,0.00021917,2]
[378137121,1754742639791,-460.0,0.00021917,2]
[378137123,1754742639801,-518.45,0.00021917,2]
[378137125,1754742639810,-460.0,0.00021917,2]
[378137126,1754742639819,-460.0,0.00021917,2]
[378137128,1754742639829,-460.0,0.00021917,2]
[378137130,1754742639838,-460.0,0.00021917,2]
[378137132,1754742639847,-460.0,0.00021917,2]
[378137134,1754742639857,-460.0,0.00021917,2]
[378137135,1754742639866,-460.0,0.00021917,2]
[378137137,1754742639876,-463.369172,0.00021917,2]
[378137139,1754742639885,-460.0,0.00021917,2]
[378137141,1754742639894,-460.0,0.00021917,2]
[378137143,1754742639904,-460.0,0.00021917,2]
[378137144,1754742639913,-460.0,0.00021917,2]
[378137146,1754742639922,-460.0,0.00021917,2]
[378137148,1754742639932,-460.0,0.00021917,2]
[378137150,1754742639941,-460.0,0.00021917,2]
[378137152,1754742639950,-460.0,0.00021917,2]
[378137154,1754742639959,-320.15184399,0.00021917,2]
[378137156,1754742639969,-463.52771179,0.00021917,2]
[378137158,1754742639979,-460.0,0.00021917,2]
[378137159,1754742639988,-460.0,0.00021917,2]
[378137161,1754742639998,-500.0,0.00021917,2]
[378137163,1754742640007,-460.0,0.00021917,2]
[378137165,1754742640017,-460.0,0.00021917,2]
[378137167,1754742640026,-460.0,0.00021917,2]
[378137168,1754742640035,-460.0,0.00021917,2]
[378137170,1754742640044,-460.0,0.00021917,2]
[378137172,1754742640053,-460.0,0.00021917,2]
[378137174,1754742640063,-460.0,0.00021917,2]
[378137176,1754742640076,-460.0,0.00021917,2]
[378137177,1754742640085,-460.0,0.00021917,2]
[378137179,1754742640094,-460.0,0.00021917,2]
[378137181,1754742640103,-460.0,0.00021917,2]
[378137183,1754742640115,-460.0,0.00021917,2]
[378137185,1754742640124,-462.42020333,0.00021917,2]
[378137187,1754742640133,-460.0,0.00021917,2]
[378137188,1754742640143,-460.0,0.00021917,2]
[378137190,1754742640153,-460.0,0.00021917,2]
[378137192,1754742640162,-460.0,0.00021917,2]
[378137194,1754742640172,-460.0,0.00021917,2]
[378137195,1754742640181,-460.0,0.00021917,2]
[378137197,1754742640190,-460.0,0.00021917,2]
[378137198,1754742640199,-460.0,0.00021917,2]
[378137200,1754742640209,-704.44,0.00021917,2]
[378137201,1754742640218,-460.0,0.00021917,2]
[378137203,1754742640227,-460.0,0.00021917,2]
[378137205,1754742640236,-460.0,0.00021917,2]
[378137207,1754742640245,-460.0,0.00021917,2]
[378137209,1754742640254,-500.0,0.00021917,2]
[378137211,1754742640264,-460.0,0.00021917,2]
[378137212,1754742640280,-460.0,0.00021917,2]
[378137214,1754742640290,-460.0,0.00021917,2]
[378137216,1754742640299,-460.0,0.00021917,2]
[378137218,1754742640308,-460.0,0.00021917,2]
[378137220,1754742640318,-601.43046983,0.00021917,2]
[378137222,1754742640327,-460.0,0.00021917,2]
[378137223,1754742640336,-462.85413211,0.00021917,2]